Cogmind - Beta 13 @@@ ROGUE MODE // 2024.04.14 @ 12:54:57 Player: maddiematics Result: Destroyed by Y-45 Defender with Beam Rifle Performance ------------- Evolutions (1) 500 Regions Visited (4) 800 Robots Destroyed (22) 110 Value Destroyed (620) 620 Prototype IDs (1) 20 Alien Tech Used (0) 0 Bonus (58) 58 TOTAL SCORE: 2108 Bonus ------- Follower Combat Kills 58 Cogmind --------- Core Integrity 0/400 Matter 280/300 Energy 82/100 System Corruption 1% Temperature Cool (11) Movement Hovering (56) Location -9/Storage Parts ------- > --- POWER (1) -------- (None) > --- PROPULSION (4) --- Hover Unit Hover Unit > --- UTILITY (2) ------ Small Storage Unit Power Shielding > --- WEAPON (2) ------- (None) > --- INVENTORY (8) ---- Compact Wheel Improved Targeting Computer ECM Suite Light Armor Plating Peak State ------------ > --- POWER ------------ Light Ion Engine > --- PROPULSION ------- Flight Unit Flight Unit Flight Unit Flight Unit > --- UTILITY ---------- Medium Storage Unit Power Shielding > --- WEAPON ----------- Small Laser Grenade Launcher > --- INVENTORY -------- Light Nuclear Core Compact Wheel Flight Unit Small Storage Unit ECM Suite Light Armor Plating Tractor Beam Small Laser Stasis Trap Stasis Trap [Rating: 10] Favorites ----------- Power Light Ion Engine Engine Light Ion Engine Power Core Light Nuclear Core Propulsion Flight Unit Leg Aluminum Leg Hover Unit Hover Unit Flight Unit Flight Unit Utility Power Shielding Device Improved Terrain Scanner Storage Medium Storage Unit Protection Power Shielding Weapon Small Laser Energy Gun Small Laser Energy Cannon Advanced Beam Cannon Ballistic Gun Assault Rifle Launcher Grenade Launcher Build | -11 -10 -10 -9 -9 ------- Run | Yrd Mat Min Mat Sto Slots Evolved 2 | . . . 2 . Power . | . . . . . Propulsion 2 | . . . 2 . Utility . | . . . . . Weapon . | . . . . . Parts Attached 28 | 7 7 2 4 8 Power 3 | 1 . 1 . 1 Engine 2 | 1 . 1 . . Core 1 | . . . . 1 Reactor . | . . . . . Propulsion 14 | 2 4 . 3 5 Treads . | . . . . . Leg 4 | 2 2 . . . Wheel . | . . . . . Hover 2 | . . . . 2 Flight 8 | . 2 . 3 3 Utility 6 | 2 3 . 1 . Device 1 | 1 . . . . Storage 4 | 1 2 . 1 . Processor . | . . . . . Hackware . | . . . . . Protection 1 | . 1 . . . Artifact . | . . . . . Weapon 5 | 2 . 1 . 2 Energy Gun 1 | 1 . . . . Energy Cannon 2 | . . . . 2 Ballistic Gun 1 | 1 . . . . Ballistic Cannon . | . . . . . Launcher 1 | . . 1 . . Special Weapon . | . . . . . Impact Weapon . | . . . . . Slashing Weapon . | . . . . . Piercing Weapon . | . . . . . Special Melee Weapon . | . . . . . Unidentified Prototypes 1 | . . . . 1 Parts Lost 14 | . 1 . . 13 Power 2 | . . . . 2 Propulsion 7 | . . . . 7 Utility 1 | . 1 . . . Weapon 4 | . . . . 4 Highest Loss Streak 10 | . 1 . . 10 To Critical Strikes . | . . . . . Average Slot Usage (%) 94 | . 99 99 98 63 Engine 11 | . 14 14 11 3 Leg 7 | . 18 . . . Flight 20 | . 9 28 42 19 Device 2 | . 5 . . . Storage 13 | . 14 14 11 11 Protection 10 | . 7 14 11 11 Energy Gun 12 | . 14 14 11 3 Energy Cannon 1 | . . . . 10 Ballistic Gun 9 | . 14 13 . . Launcher 1 | . . . 11 3 Naked Turns . | . . . . . Heaviest Build 27 | 12 27 18 18 14 Greatest Support 20 | 20 20 8 16 16 Greatest Overweight (x) 4 | . 2 2 1 4 Average Overweight (x) . | . . 2 . . Largest Inventory Capacity 15 | 8 15 10 10 8 Average Capacity 9 | 7 9 10 9 8 Most Carried 10 | 3 10 10 10 7 Average Carried 6 | 2 7 8 8 4 Final Capacity 10 | 8 10 10 8 8 Final Carried 10 | 3 7 10 5 4 Class Distribution -------------------- 92% | Mutant 7% | Sprinter Dominant Class ---------------- Mutant | -10/Materials Mutant | -10/Mines Mutant | -9/Materials Mutant | -9/Storage Resources | -11 -10 -10 -9 -9 ----------- Run | Yrd Mat Min Mat Sto Matter Collected 569 | 191 207 . 90 81 Remotely . | . . . . . Salvage Created 717 | 25 292 . 169 231 Parts 42 | 3 13 . 9 17 Haulers Intercepted . | . . . . . Recyclers Shooed 1 | . . . . 1 Parts Field Recycled . | . . . . . Retrieved Matter . | . . . . . Parts Self-Destructed . | . . . . . Prevented . | . . . . . Kills | -11 -10 -10 -9 -9 ------- Run | Yrd Mat Min Mat Sto Combat Hostiles Destroyed 18 | . 6 . 3 9 Guns 7 | . 6 . 1 . Cannons 4 | . . . . 4 AOE 7 | . . . 2 5 Classes Destroyed 6 | 1 2 . 2 1 Worker 2 | . 2 . . . Tunneler 1 | 1 . . . . Recycler 1 | . . . 1 . Swarmer 4 | . . . . 4 Grunt 11 | . 6 . 2 3 Sentry 3 | . . . 1 2 Best Kill Streak 4 | 1 3 . 4 4 Combat Bots Only 4 | . 2 . 3 4 Max Kills in Single Turn 3 | 1 1 . 1 3 Gunslinging . | . . . . . Exploded 3 | . . . 1 3 Melee . | . . . . . Uniques/NPCs Destroyed . | . . . . . Combat | -11 -10 -10 -9 -9 -------- Run | Yrd Mat Min Mat Sto Hostile Shots Fired 160 | . 42 . 13 105 Missed 51 | . 13 . 7 31 Damage Taken 1433 | . 340 . 116 977 Core 482 | . 75 . 44 363 Absorbed by Shields 31 | . . . . 31 Redirected to Shielding 42 | . 6 . 10 26 Regen/Repaired (Parts) 14 | . . . 14 . Core Remaining (%) 85 | 100 . 70 . . Volleys Fired 45 | 2 19 . 15 9 Largest 2 | 2 2 . 2 2 Hottest 136 | 60 60 . 70 136 Shots Fired 81 | 4 38 . 21 18 Gun 61 | 4 38 . 15 4 Cannon 10 | . . . . 10 Launcher 10 | . . . 6 4 Special . | . . . . . Kinetic 21 | 2 19 . . . Thermal 50 | 2 19 . 15 14 Explosive 10 | . . . 6 4 Electromagnetic . | . . . . . Robot Hit Streak 9 | 1 5 . 9 7 Robot Miss Streak 2 | 2 2 . 2 1 Penetration Max . | . . . . . Secondary Targets 1 | . 1 . . . Max Gunslinging Chain 1 | . 1 . . . Shots Hit Robots 51 | 2 24 . 15 10 Core Hits 37 | 1 15 . 9 12 Critical Kills . | . . . . . Critical Parts Destroyed . | . . . . . Critical Strikes . | . . . . . Melee Attacks . | . . . . . Impact . | . . . . . Slashing . | . . . . . Piercing . | . . . . . Sneak Attacks . | . . . . . Combat Hostiles . | . . . . . Follow-up Attacks . | . . . . . Damage Inflicted 1075 | 20 334 . 327 394 Guns 489 | 20 334 . 135 . Cannons 164 | . . . . 164 Explosions 415 | . . . 192 223 Melee . | . . . . . Ramming 7 | . . . . 7 Kinetic 215 | 10 205 . . . Thermal 438 | 10 129 . 135 164 Explosive 415 | . . . 192 223 Electromagnetic . | . . . . . Impact . | . . . . . Slashing . | . . . . . Piercing . | . . . . . Highest Corruption 1 | . . . . 1 Average Corruption 1 | . . . . 1 Corruption Purged . | . . . . . Corruption Blocked . | . . . . . Effects 1 | . . . . 1 Matter Fused 1 | . . . . 1 Overload Shots . | . . . . . Overflow Damage 13 | . . . . 13 Projectiles . | . . . . . Explosions 13 | . . . . 13 Melee . | . . . . . Knockbacks . | . . . . . Impact . | . . . . . Kinetic . | . . . . . Secondary . | . . . . . Self-Inflicted Damage 36 | . . . 12 24 Shots 2 | . . . 1 1 Rammed 9 | . . . . 9 Targets Rammed 9 | . . . . 9 Kicked . | . . . . . Crushed . | . . . . . Highest Temperature 248 | . 81 . 33 248 Average Temperature 42 | . 30 . 13 86 Received Heat Transfer 614 | . 189 . 39 386 Siege Activations . | . . . . . Robots Corrupted . | . . . . . Combat Hostiles . | . . . . . Parts Fried . | . . . . . Impact Corruptions . | . . . . . Robots Melted . | . . . . . Combat Hostiles . | . . . . . Parts Melted 2 | . . . 1 1 Heat Transferred 921 | 25 300 . 300 296 Parts Sabotaged . | . . . . . Parts Stolen . | . . . . . Parts Stripped . | . . . . . Power Chain Reactions . | . . . . . Alert | -11 -10 -10 -9 -9 ------- Run | Yrd Mat Min Mat Sto Peak Influence 303 | 5 109 19 217 303 Initial 91 | . 3 19 . 91 Average 70 | 2 40 17 121 247 Maximum Alert Level 1 | . . . 1 1 Low Security (%) 86 | 100 100 100 98 11 Level 1 13 | . . . 1 88 Level 2 . | . . . . . Level 3 . | . . . . . Level 4 . | . . . . . Level 5 . | . . . . . High Security . | . . . . . Max Security . | . . . . . Squads Dispatched 6 | . 1 . 2 3 Investigation 3 | . 1 . . 2 Extermination . | . . . . . Reinforcement 3 | . . . 2 1 Assault . | . . . . . Garrison . | . . . . . Intercept . | . . . . . Searches Triggered . | . . . . . Construction Impeded . | . . . . . Haulers Reinforced . | . . . . . Active Scanning Responses . | . . . . . Cargo Convoy Interrupts . | . . . . . Stealth | -11 -10 -10 -9 -9 --------- Run | Yrd Mat Min Mat Sto Distress Signals 1 | . 1 . . . Communications Jammed . | . . . . . Distress Signals . | . . . . . Times Spotted 31 | . 8 . 8 15 Peak Tracking Total 6 | . 3 . 4 6 Tactical Retreats 1 | . . . . 1 Traps | -11 -10 -10 -9 -9 ------- Run | Yrd Mat Min Mat Sto Traps Triggered 1 | . . . . 1 Indirectly . | . . . . . Trap Hack Attempts . | . . . . . Triggered . | . . . . . Disarmed . | . . . . . Reprogrammed . | . . . . . Reused . | . . . . . Traps Extracted . | . . . . . Installed . | . . . . . Triggered . | . . . . . Most Traps Carried 2 | . . 2 2 . Machines | -11 -10 -10 -9 -9 ---------- Run | Yrd Mat Min Mat Sto Machines Disabled 3 | . . . 2 1 Max in Single Turn 1 | . . . 1 1 Machines Repaired . | . . . . . Machines Dismantled . | . . . . . Machines Sabotaged . | . . . . . Overloaded Fab Kills . | . . . . . Hacking | -11 -10 -10 -9 -9 --------- Run | Yrd Mat Min Mat Sto Machines Accessed 6 | . 2 . 1 3 Terminals 4 | . 1 . . 3 Fabricators . | . . . . . Repair Stations 1 | . . . 1 . Recycling Units 1 | . 1 . . . Scanalyzers . | . . . . . Garrison Access . | . . . . . Total Hacks 24 | . 6 . 8 10 Successful 14 | . 2 . 5 7 Failed 10 | . 4 . 3 3 Catastrophic 2 | . 1 . . 1 Database Lockouts . | . . . . . Manual 6 | . 3 . . 3 Terminals 13 | . 3 . . 10 Fabricators . | . . . . . Repair Stations 8 | . . . 8 . Recycling Units 3 | . 3 . . . Scanalyzers . | . . . . . Garrison Access . | . . . . . Terminal Hacks 7 | . . . . 7 Record 6 | . . . . 6 Open Door 1 | . . . . 1 Fabricator Hacks . | . . . . . Repair Station Hacks 5 | . . . 5 . Scan Component 3 | . . . 3 . Repair 2 | . . . 2 . Recycling Unit Hacks 2 | . 2 . . . Recycle Component 1 | . 1 . . . Process 1 | . 1 . . . Scanalyzer . | . . . . . Garrison Access Hacks . | . . . . . Unauthorized Hacks . | . . . . . Terminals . | . . . . . Fabricators . | . . . . . Repair Stations . | . . . . . Recycling Units . | . . . . . Scanalyzers . | . . . . . Garrison Access . | . . . . . Data Cores Recovered . | . . . . . Used . | . . . . . Hacking Detections 5 | . 2 . 1 2 Full Trace Events 4 | . 1 . 1 2 Feedback Events 1 | . . . . 1 Corruption 1 | . . . . 1 Feedback Blocked . | . . . . . Robot Schematics Acquired . | . . . . . Robots Built . | . . . . . Authchips . | . . . . . Time . | . . . . . Total Robot Build Rating . | . . . . . Part Schematics Acquired . | . . . . . Parts Built . | . . . . . Authchips . | . . . . . Time . | . . . . . Total Part Build Rating . | . . . . . Parts Repaired 2 | . . . 2 . Time 64 | . . . 64 . Parts Recycled 1 | . 1 . . . Recycled Matter 174 | . 174 . . . Retrieved Matter . | . . . . . Retrieved Components . | . . . . . Parts Scanalyzed . | . . . . . Part Schematics Acquired . | . . . . . Parts Damaged . | . . . . . Bothacking | -11 -10 -10 -9 -9 ------------ Run | Yrd Mat Min Mat Sto Used RIF Installer . | . . . . . Robots Hacked . | . . . . . Non-combat . | . . . . . Combat . | . . . . . Robot Hacks Applied . | . . . . . Relay Couplers Released . | . . . . . Fabnet Peak Effective % . | . . . . . Robots Rewired . | . . . . . Allies Hacked . | . . . . . Hacks Repelled . | . . . . . Allies | -11 -10 -10 -9 -9 -------- Run | Yrd Mat Min Mat Sto Total Allies 2 | . . 2 . . Largest Group 2 | . . 2 2 . Highest-Rated Group 43 | . . 43 43 . Highest-Rated Ally 31 | . . 31 31 . Total Orders . | . . . . . Ally Attacks 15 | . . . 15 . Total Damage 169 | . . . 169 . Kills 2 | . . . 2 . Allies Corrupted . | . . . . . Allies Melted . | . . . . . Intel | -11 -10 -10 -9 -9 ------- Run | Yrd Mat Min Mat Sto Robot Analysis Total . | . . . . . Derelict Logs Recovered 1 | . . 1 . . Drone Launches . | . . . . . Drone Recoveries . | . . . . . Exploration | -11 -10 -10 -9 -9 ------------- Run | Yrd Mat Min Mat Sto Turns Passed 1603 | 122 641 430 176 234 Spaces Moved 1089 | 95 390 215 152 237 Core 58 | 16 . . . 42 Treads . | . . . . . Legs 361 | 79 282 . . . Wheels . | . . . . . Hover 14 | . . . . 14 Flight 656 | . 108 215 152 181 Fastest Speed 31 | 50 120 197 31 31 Average Speed 123 | 108 141 197 70 66 Slowest Speed 280 | 120 197 197 114 280 Overloaded Moves . | . . . . . Propulsion Burnouts . | . . . . . Robots Hopped 3 | . . . 2 1 Cave-ins Triggered . | . . . . . Exploration Rate (%) 27 | 5 38 37 13 44 Regions Visited 4 Branch Regions 2 Pre-discovered Areas . | . . . . . Known Exits Taken 1 | . . . 1 . Unknown Exits Taken 3 | 1 1 1 . . Scrap Searched 1 | . . 1 . . Spaces Dug . | . . . . . Terrain Destroyed 42 | . . . 20 22 Melee . | . . . . . Projectile . | . . . . . AOE 42 | . . . 20 22 Terrain Rammed . | . . . . . Walls Destroyed . | . . . . . Machines Disabled . | . . . . . Actions | -11 -10 -10 -9 -9 --------- Run | Yrd Mat Min Mat Sto Total 1251 | 106 444 222 199 280 Wait 26 | . 3 . 23 . Move 1079 | 94 389 214 147 235 Hop 3 | . . . 2 1 Pick Up 31 | 3 16 4 3 5 Fast Attach 11 | 7 . 1 1 2 Attach 11 | . 3 . 2 6 Detach . | . . . . . Swap 6 | . 4 1 1 . Drop 17 | . 10 2 5 . Fire 45 | 2 19 . 15 9 Melee . | . . . . . Ram 9 | . . . . 9 Kick . | . . . . . Crush . | . . . . . Escape Stasis 13 | . . . . 13 Rewire . | . . . . . Trap . | . . . . . Miscellaneous . | . . . . . Route ------- -11/Scrapyard -10/Materials -10/Mines -9/Materials (discovered 5 exits: Mat x2 / Min / *Sto x2) -9/Storage History --------- Turn | Location | Event 11 | -11/Scrapyard | Discovered new exit (range 16) 123 | -11/Scrapyard | Entered Materials 123 | -10/Materials | Discovered new exit (range 14) 317 | -10/Materials | Build established: Mutant 764 | -10/Materials | Entered Mines 799 | -10/Mines | Met a Derelict bent on vengeance 935 | -10/Mines | Learned 8 Materials zone layouts 1051 | -10/Mines | Found a hidden stash of uninstalled traps 1152 | -10/Mines | Discovered new exit (range 9) 1194 | -10/Mines | Entered Materials 1194 | -9/Materials | Accompanied by 2 allies 1194 | -9/Materials | Evolved 2 slots: Propulsion x2 1195 | -9/Materials | Identified exit to Mines 1195 | -9/Materials | Identified exit to Materials 1195 | -9/Materials | Identified exit to Storage 1196 | -9/Materials | Discovered exit to Storage (range 7) 1199 | -9/Materials | Led the pair of lost Derelicts to an unsafe place 1291 | -9/Materials | Repaired Lgt. Nuclear Core 1317 | -9/Materials | Repaired Flight Unit 1370 | -9/Materials | Entered Storage 1507 | -9/Storage | Lost 10 parts (2p6n2w) 1528 | -9/Storage | Core integrity fell below 50% 1540 | -9/Storage | Core integrity fell below 20% 1604 | -9/Storage | Destroyed by Y-45 Defender with Beam Rifle Last Messages --------------- K-01 Serf collects debris. Slammed into Y-45 Defender. Broken Flight Unit destroyed. Slammed into Y-45 Defender. Critical hit (Burn: +37). Warning: Alt-Tabbing between programs is known to cause issues with some software requiring use of the Alt key, leaving a program unaware of the key's current state, and defaulting to off when the program checks. Keyboard commands such as panning the map may instead move Cogmind after an Alt-Tab. To prevent this possibility, consider tapping the Alt key again after returning to Cogmind in order to reset it. See the manual for more info. Slammed into R-06 Scavenger. Destabilizing: Core damaged (-8). K-01 Serf collects debris. Adv. Beam Cannon destroyed. K-01 Serf collects debris. Adv. Beam Cannon destroyed. Acquired Hover Unit. Acquired Imp. Targeting Computer. Map ----- +----------------------------------------------------+ | | | | | | | ?????????????????????????????? | | ?????????????????????????????? | | ?????????????????????????????? | | ?????????????????????????????? | | ?????????????????????????????? | | ??????####+????????#####?????? | | ??????# ???????? #?????? | | ??????# #??????# #?????? | | ??????# ######## ####??? | | ??????+ #??? | | ??????# #??? | | ??????# #??? | | ??????# #??? | | ??????# #??? | | ??????# #??? | | ??????# ##+####### #??? | | ??????# ## ###/#####+#### | | ?????## ## ## # [ # | | ###### # ## "# # | | + !! ## T#""" # | | ###### # ## "#""" # | | ?????## ## !## #""" # | | ??????#%########## !!# @Y # | | ??????#%#????????# !!###/# #? | | ??????#%#????????# ! ### #??? | | ??????#%#????????# + #??? | | ??????#%#????????# ########??? | | ??????#%#???###??##??????????? | | ?????##%#####T######?????????? | | ?????# # ]]#?????????? | | ?????# %# #?????????? | | ?????# +% [[[[#?????????? | | ?????# #########?????????? | | ?????# #?????????????????? | | ?????## ##?????????????????? | | ??????# #??????????????????? | | ??????# #??????????????????? | | ??????# #???###????????????? | | ?????## #?## ##???????????? | | ???? ## #?# ####????????? | | ??? ## #?# " ##???????? | | ??" ## ### = #???????? | | ? ## ## % #???????? | | ??# % * #???????? | | +##### #???????? | | #???????? | | ""#??????? | +----------------------------------------------------+ Best States ------------- Heat Dissipation 28 Energy Generation 14 Energy Capacity 160 Matter Stores 300 Matter Capacity 300 Sight Range 16 Terrain Scan Range 16 Terrain Scan Density 10 Power Shielding 33 Evasion (%) 63 Item Schematics ----------------- None Robot Schematics ------------------ None Fabricated ------------ Nothing Alien Tech Used ----------------- None Achievements -------------- Part-time Mechanic Challenges ------------ None Game ------ Seed AlloyThunderDoomcannon Manual? 0 Play Time 00:25:06 Cumulative 2.0 hours Start 2024.04.14 @ 12:30:58 End 2024.04.14 @ 12:54:57 Sessions 1 Manual Loads 0 Difficulty Rogue Special Mode None Game No. 5 Rogue 5 Adventurer 0 Explorer 0 Win Type - Total 0 Types 0/0/0/0/0/0/0/0/0 Lore% 4 Gallery% 5 Achievement% 6 Wizard Run 0 Options --------- Layout 1 ASCII 0 Keyboard 0 Movement Vi Keybinds 0 Fullscreen 1 Font 32/Terminus Map View 77x35 Zoom Use 0% Tactical HUD 0 Map Filters NONE Filters NONE Steam 1 RUN: 3ee1f2f1-c154-437a-8f0e-d01eea42e253